fUST/lending_fUST_20250718
["ID","MTS","AMOUNT","RATE_DAILY","PERIOD"]
[372902667,1752797443575,-375.77260743,0.00017909,2]
[372902669,1752797443586,-420.0,0.00017962,2]
[372902671,1752797443595,-160.0,0.00017972,2]
[372902673,1752797443605,-315.0,0.00018052,2]
[372902675,1752797443615,-460.0,0.00018082,2]
[372902677,1752797443624,-460.0,0.00018082,2]
[372902679,1752797443634,-573.51,0.00018082,2]
[372902681,1752797443644,-460.0,0.00018082,2]
[372902683,1752797443654,-460.0,0.00018082,2]
[372902685,1752797443664,-460.0,0.00018082,2]
[372902687,1752797443674,-460.0,0.00018082,2]
[372902689,1752797443683,-2003.11,0.00018082,2]
[372902691,1752797443692,-460.0,0.00018082,2]
[372902692,1752797443702,-460.0,0.00018082,2]
[372902694,1752797443711,-1450.65,0.00018082,2]
[372902697,1752797443721,-460.0,0.00018082,2]
[372902699,1752797443731,-460.0,0.00018082,2]
[372902700,1752797443741,-1498.98,0.00018082,2]
[372902702,1752797443750,-460.0,0.00018082,2]
[372902705,1752797443760,-2226.3,0.00018082,2]
[372902707,1752797443769,-2852.64,0.00018082,2]
[372902709,1752797443779,-460.0,0.00018082,2]
[372902711,1752797443788,-674.51,0.00018082,2]
[372902713,1752797443798,-491.26,0.00018082,2]
[372902715,1752797443813,-460.0,0.00018082,2]
[372902717,1752797443822,-599.29,0.00018082,2]
[372902719,1752797443832,-562.19,0.00018082,2]
[372902721,1752797443842,-2898.84,0.00018082,2]
[372902723,1752797443853,-460.0,0.00018082,2]
[372902725,1752797443864,-460.0,0.00018082,2]
[372902727,1752797443874,-258.06424337,0.00018082,2]
[372902729,1752797443885,-460.0,0.00018082,2]
[372902731,1752797443895,-460.0,0.00018082,2]
[372902733,1752797443905,-460.0,0.00018082,2]
[372902735,1752797443914,-1471.2,0.00018082,2]
[372902737,1752797443927,-722.45,0.00018082,2]
[372902739,1752797443937,-1853.03,0.00018082,2]
[372902741,1752797443947,-460.0,0.00018082,2]
[372902743,1752797443957,-460.0,0.00018082,2]
[372902745,1752797443968,-460.0,0.00018082,2]
[372902746,1752797443977,-460.0,0.00018082,2]
[372902748,1752797443987,-460.0,0.00018082,2]
[372902750,1752797443996,-460.0,0.00018082,2]
[372902752,1752797444006,-1164.09,0.00018082,2]
[372902754,1752797444016,-1096.65,0.00018082,2]
[372902756,1752797444025,-460.0,0.00018082,2]
[372902758,1752797444034,-4786.0,0.00018082,2]
[372902760,1752797444044,-460.0,0.00018082,2]
[372902762,1752797444058,-460.0,0.00018082,2]
[372902764,1752797444068,-639.4,0.00018082,2]
[372902766,1752797444077,-460.0,0.00018082,2]
[372902768,1752797444087,-1414.12,0.00018082,2]
[372902769,1752797444097,-460.0,0.00018082,2]
[372902771,1752797444106,-460.0,0.00018082,2]
[372902773,1752797444116,-500.0,0.00018113,2]
[372902775,1752797444126,-1384.25,0.00018116,2]
[372902777,1752797444136,-1015.4,0.00018116,2]
[372902779,1752797444145,-245.0,0.00018143,2]
[372902781,1752797444155,-655.0,0.00018143,2]
[372902783,1752797444165,-319.0,0.00018324,2]
[372902785,1752797444174,-580.76,0.00018346,3]
[372902787,1752797444184,-460.0,0.00018356,2]
[372902789,1752797444194,-460.0,0.00018356,2]
[372902791,1752797444203,-573.51,0.00018356,2]
[372902793,1752797444212,-460.0,0.00018356,2]
[372902795,1752797444222,-460.0,0.00018356,2]
[372902796,1752797444231,-460.0,0.00018356,2]
[372902797,1752797444241,-2003.11,0.00018356,2]
[372902798,1752797444249,-460.0,0.00018356,2]
[372902799,1752797444259,-460.0,0.00018356,2]
[372902800,1752797444272,-1450.65,0.00018356,2]
[372902802,1752797444293,-460.0,0.00018356,2]
[372902804,1752797444315,-460.0,0.00018356,2]
[372902805,1752797444336,-1498.98,0.00018356,2]
[372902806,1752797444348,-460.0,0.00018356,2]
[372902807,1752797444358,-2226.3,0.00018356,2]
[372902808,1752797444368,-2852.64,0.00018356,2]
[372902809,1752797444377,-460.0,0.00018356,2]
[372902810,1752797444387,-674.51,0.00018356,2]
[372902811,1752797444397,-491.26,0.00018356,2]
[372902812,1752797444407,-460.0,0.00018356,2]
[372902813,1752797444416,-599.29,0.00018356,2]
[372902814,1752797444425,-562.19,0.00018356,2]
[372902815,1752797444435,-2898.84,0.00018356,2]
[372902816,1752797444444,-460.0,0.00018356,2]
[372902817,1752797444453,-460.0,0.00018356,2]
[372902818,1752797444464,-551.08,0.00018356,2]
[372902819,1752797444474,-460.0,0.00018356,2]
[372902820,1752797444483,-460.0,0.00018356,2]
[372902821,1752797444493,-1471.2,0.00018356,2]
[372902822,1752797444502,-722.45,0.00018356,2]
[372902823,1752797444513,-460.0,0.00018356,2]
[372902824,1752797444522,-1853.03,0.00018356,2]
[372902825,1752797444532,-532.68,0.00018356,2]
[372902826,1752797444541,-460.0,0.00018356,2]
[372902827,1752797444551,-460.0,0.00018356,2]
[372902828,1752797444563,-460.0,0.00018356,2]
[372902829,1752797444573,-460.0,0.00018356,2]
[372902830,1752797444583,-1164.09,0.00018356,2]
[372902831,1752797444593,-1096.65,0.00018356,2]
[372902832,1752797444603,-460.0,0.00018356,2]
[372902833,1752797444613,-460.0,0.00018356,2]
[372902834,1752797444623,-4786.0,0.00018356,2]
[372902835,1752797444632,-460.0,0.00018356,2]
[372902836,1752797444642,-639.4,0.00018356,2]
[372902837,1752797444652,-460.0,0.00018356,2]
[372902838,1752797444661,-1414.12,0.00018356,2]
[372902839,1752797444671,-460.0,0.00018356,2]
[372902840,1752797444681,-460.0,0.00018356,2]
[372902841,1752797444690,-160.0,0.00018381,2]
[372902842,1752797444700,-160.0,0.00018381,2]
[372902843,1752797444709,-12607.95677342,0.00018381,2]
[372902844,1752797444719,-160.0,0.00018381,2]
[372902845,1752797444728,-839.15451687,0.00018381,2]
[372902846,1752797444738,-476.16111942,0.00018381,2]
[372902847,1752797444748,-525.67742785,0.00018381,2]
[372902848,1752797444757,-215.59244943,0.00018381,2]
[372902849,1752797444767,-230.85589339,0.00018381,2]
[372902850,1752797444776,-160.0,0.00018381,2]
[372902851,1752797444786,-214.44804168,0.00018381,2]
[372902852,1752797444796,-160.0,0.00018381,2]
[372902853,1752797444811,-160.0,0.00018381,2]
[372902854,1752797444821,-160.0,0.00018381,2]
[372902855,1752797444831,-160.0,0.00018381,2]
[372902856,1752797444840,-160.0,0.00018381,2]
[372902857,1752797444851,-1500.0,0.00018385,2]
[372902858,1752797444861,-500.0,0.00018387,2]
[372902859,1752797444870,-1384.25,0.0001839,2]
[372902860,1752797444881,-1015.4,0.0001839,2]
[372902861,1752797444891,-1000.0,0.00018397,2]
[372902862,1752797444900,-1000.0,0.00018397,2]
[372902863,1752797444910,-655.0,0.00018417,2]
[372902864,1752797444920,-1013.77882747,0.00018461,2]
[372902865,1752797444929,-260.0,0.0001852,2]
[372902866,1752797444939,-460.0,0.0001863,2]
[372902867,1752797444949,-560.91638043,0.0001863,2]
[372902868,1752797444958,-573.51,0.0001863,2]
[372902869,1752797444968,-460.0,0.0001863,2]
[372902870,1752797444978,-460.0,0.0001863,2]
[372902871,1752797444987,-460.0,0.0001863,2]
[372902872,1752797444996,-2003.11,0.0001863,2]
[372902873,1752797445006,-460.0,0.0001863,2]
[372902874,1752797445016,-460.0,0.0001863,2]
[372902875,1752797445025,-1450.65,0.0001863,2]
[372902876,1752797445035,-460.0,0.0001863,2]
[372902877,1752797445045,-460.0,0.0001863,2]
[372902878,1752797445056,-1498.98,0.0001863,2]
[372902879,1752797445065,-460.0,0.0001863,2]
[372902880,1752797445075,-2226.3,0.0001863,2]
[372902881,1752797445084,-2852.64,0.0001863,2]
[372902882,1752797445094,-460.0,0.0001863,2]
[372902883,1752797445103,-674.51,0.0001863,2]
[372902884,1752797445113,-491.26,0.0001863,2]
[372902885,1752797445122,-460.0,0.0001863,2]
[372902886,1752797445132,-599.29,0.0001863,2]
[372902887,1752797445142,-562.19,0.0001863,2]
[372902888,1752797445152,-2898.84,0.0001863,2]
[372902889,1752797445161,-460.0,0.0001863,2]
[372902890,1752797445171,-460.0,0.0001863,2]
[372902891,1752797445180,-460.0,0.0001863,2]
[372902892,1752797445190,-460.0,0.0001863,2]
[372902893,1752797445199,-1471.2,0.0001863,2]
[372902894,1752797445209,-722.45,0.0001863,2]
[372902895,1752797445218,-394.63,0.0001863,2]
[372902896,1752797445228,-1853.03,0.0001863,2]
[372902897,1752797445237,-460.0,0.0001863,2]
[372902898,1752797445247,-460.0,0.0001863,2]
[372902899,1752797445256,-460.0,0.0001863,2]
[372902900,1752797445265,-460.0,0.0001863,2]
[372902901,1752797445275,-1164.09,0.0001863,2]
[372902902,1752797445285,-1096.65,0.0001863,2]
[372902903,1752797445295,-460.0,0.0001863,2]
[372902904,1752797445306,-460.0,0.0001863,2]
[372902905,1752797445316,-4786.0,0.0001863,2]
[372902906,1752797445325,-460.0,0.0001863,2]
[372902908,1752797445335,-639.4,0.0001863,2]
[372902909,1752797445345,-460.0,0.0001863,2]
[372902910,1752797445354,-1414.12,0.0001863,2]
[372902911,1752797445364,-460.0,0.0001863,2]
[372902912,1752797445374,-460.0,0.0001863,2]
[372902913,1752797445384,-500.0,0.00018661,2]
[372902914,1752797445394,-1384.25,0.00018664,2]
[372902915,1752797445403,-1015.4,0.00018664,2]
[372902916,1752797445413,-655.0,0.00018691,2]
[372902917,1752797445423,-302.90913937,0.000189,2]
[372902918,1752797445435,-460.0,0.00018904,2]
[372902919,1752797445453,-573.51,0.00018904,2]
[372902920,1752797445465,-460.0,0.00018904,2]
[372902921,1752797445475,-460.0,0.00018904,2]
[372902922,1752797445484,-460.0,0.00018904,2]
[372902923,1752797445493,-2003.11,0.00018904,2]
[372902924,1752797445503,-460.0,0.00018904,2]
[372902925,1752797445513,-460.0,0.00018904,2]
[372902926,1752797445522,-1450.65,0.00018904,2]
[372902927,1752797445532,-460.0,0.00018904,2]
[372902928,1752797445541,-460.0,0.00018904,2]
[372902929,1752797445550,-1498.98,0.00018904,2]
[372902930,1752797445564,-460.0,0.00018904,2]
[372902932,1752797445573,-2226.3,0.00018904,2]
[372902934,1752797445588,-2852.64,0.00018904,2]
[372902937,1752797445602,-460.0,0.00018904,2]
[372902939,1752797445612,-674.51,0.00018904,2]
[372902941,1752797445621,-491.26,0.00018904,2]
[372902943,1752797445630,-460.0,0.00018904,2]
[372902945,1752797445639,-599.29,0.00018904,2]
[372902946,1752797445649,-562.19,0.00018904,2]
[372902949,1752797445659,-2898.84,0.00018904,2]
[372902951,1752797445668,-460.0,0.00018904,2]
[372902953,1752797445678,-460.0,0.00018904,2]
[372902955,1752797445688,-460.0,0.00018904,2]
[372902957,1752797445698,-460.0,0.00018904,2]
[372902959,1752797445709,-1471.2,0.00018904,2]
[372902961,1752797445725,-722.45,0.00018904,2]
[372902963,1752797445735,-1853.03,0.00018904,2]
[372902965,1752797445745,-460.0,0.00018904,2]
[372902967,1752797445755,-460.0,0.00018904,2]
[372902969,1752797445767,-294.54,0.00018904,2]
[372902971,1752797445776,-460.0,0.00018904,2]
[372902972,1752797445786,-1164.09,0.00018904,2]
[372902974,1752797445797,-1096.65,0.00018904,2]
[372902975,1752797445813,-460.0,0.00018904,2]
[372902976,1752797445823,-460.0,0.00018904,2]
[372902977,1752797445832,-4786.0,0.00018904,2]
[372902978,1752797445842,-460.0,0.00018904,2]
[372902979,1752797445853,-639.4,0.00018904,2]
[372902980,1752797445863,-460.0,0.00018904,2]
[372902981,1752797445872,-1414.12,0.00018904,2]
[372902982,1752797445882,-460.0,0.00018904,2]
[372902983,1752797445892,-460.0,0.00018904,2]
[372902984,1752797445902,-2000.0,0.00018933,2]
[372902985,1752797445911,-500.0,0.00018935,2]
[372902986,1752797445921,-1384.25,0.00018938,2]
[372902987,1752797445931,-1015.4,0.00018938,2]
[372902988,1752797445940,-500.0,0.00018945,2]
[372902989,1752797445949,-1203.55635699,0.00018945,2]
[372902990,1752797445959,-655.0,0.00018965,2]
[372902991,1752797445970,-180.0,0.00019068,2]
[372902992,1752797445980,-302.90913937,0.00019089,2]
[372902993,1752797445991,-425.29,0.00019178,2]
[372902994,1752797446002,-573.51,0.00019178,2]
[372902995,1752797446012,-460.0,0.00019178,2]
[372902996,1752797446021,-460.0,0.00019178,2]
[372902997,1752797446031,-519.41589215,0.00019178,7]
[372902998,1752797446040,-248.34584934,0.00019178,2]
[372902999,1752797446180,-151.0,0.00019178,2]
[372903000,1752797446190,-460.0,0.00019178,2]
[372903002,1752797446203,-2003.11,0.00019178,2]
[372903004,1752797446212,-460.0,0.00019178,2]
[372903006,1752797446222,-460.0,0.00019178,2]
[372903008,1752797446232,-1450.65,0.00019178,2]
[372903010,1752797446241,-460.0,0.00019178,2]
[372903011,1752797446251,-460.0,0.00019178,2]
[372903012,1752797446260,-1498.98,0.00019178,2]
[372903013,1752797446269,-460.0,0.00019178,2]
[372903014,1752797446279,-2226.3,0.00019178,2]
[372903015,1752797446288,-2852.64,0.00019178,2]
[372903017,1752797446297,-460.0,0.00019178,2]
[372903019,1752797446311,-674.51,0.00019178,2]
[372903021,1752797446320,-491.26,0.00019178,2]
[372903023,1752797446329,-460.0,0.00019178,2]
[372903025,1752797446339,-599.29,0.00019178,2]
[372903027,1752797446348,-562.19,0.00019178,2]
[372903029,1752797446358,-2898.84,0.00019178,2]
[372903031,1752797446367,-460.0,0.00019178,2]
[372903033,1752797446377,-460.0,0.00019178,2]
[372903035,1752797446386,-460.0,0.00019178,2]
[372903037,1752797446396,-460.0,0.00019178,2]
[372903039,1752797446405,-1471.2,0.00019178,2]
[372903041,1752797446414,-722.45,0.00019178,2]
[372903043,1752797446423,-1853.03,0.00019178,2]
[372903045,1752797446434,-460.0,0.00019178,2]
[372903047,1752797446443,-257.71,0.00019178,2]
[372903049,1752797446453,-500.0,0.00019178,2]
[372903051,1752797446462,-460.0,0.00019178,2]
[372903053,1752797446473,-1164.09,0.00019178,2]
[372903055,1752797446484,-1096.65,0.00019178,2]
[372903057,1752797446494,-460.0,0.00019178,2]
[372903059,1752797446504,-460.0,0.00019178,2]
[372903061,1752797446514,-4786.0,0.00019178,2]
[372903063,1752797446524,-460.0,0.00019178,2]
[372903065,1752797446533,-639.4,0.00019178,2]
[372903067,1752797446543,-460.0,0.00019178,2]
[372903069,1752797446556,-1414.12,0.00019178,2]
[372903070,1752797446566,-460.0,0.00019178,2]
[372903071,1752797446575,-460.0,0.00019178,2]
[372903072,1752797446585,-178.237228,0.00019178,2]
[372903073,1752797446595,-5000.0,0.00019178,2]
[372903074,1752797446605,-666.0,0.00019178,2]
[372903075,1752797446615,-500.0,0.00019209,2]
[372903076,1752797446624,-1384.25,0.00019212,2]
[372903077,1752797446634,-1015.4,0.00019212,2]
[372903078,1752797446643,-655.0,0.00019239,2]
[372903079,1752797446655,-302.90913937,0.00019278,2]
[372903080,1752797446664,-100000.0,0.00019329,2]
[372903081,1752797446673,-370.80328516,0.00019373,2]
[372903082,1752797446683,-500.0,0.00019373,2]
[372903083,1752797446693,-500.0,0.00019373,2]
[372903084,1752797446703,-500.0,0.00019373,2]
[372903085,1752797446713,-500.0,0.00019373,2]
[372903086,1752797446723,-643.78665454,0.00019373,2]
[372903087,1752797446732,-500.0,0.00019373,2]
[372903088,1752797446743,-500.0,0.00019373,2]
[372903089,1752797446753,-500.0,0.00019373,2]
[372903090,1752797446763,-500.0,0.00019373,2]
[372903091,1752797446772,-503.46839488,0.00019373,2]
[372903092,1752797446782,-501.03534537,0.00019373,2]
[372903093,1752797446792,-500.0,0.00019373,2]
[372903094,1752797446802,-375.97667728,0.00019373,2]
[372903095,1752797446816,-500.0,0.00019373,2]
[372903096,1752797446825,-902.48014611,0.000194,2]
[372903097,1752797446835,-219.8559037,0.00019452,2]
[372903098,1752797446846,-573.51,0.00019452,2]
[372903099,1752797446855,-460.0,0.00019452,2]
[372903100,1752797446865,-460.0,0.00019452,2]
[372903101,1752797446875,-460.0,0.00019452,2]
[372903102,1752797446886,-2003.11,0.00019452,2]
[372903103,1752797446897,-460.0,0.00019452,2]
[372903104,1752797446906,-460.0,0.00019452,2]
[372903105,1752797446916,-1450.65,0.00019452,2]
[372903106,1752797446925,-486.74287168,0.00019452,2]
[372903107,1752797446935,-460.0,0.00019452,2]
[372903108,1752797446945,-1498.98,0.00019452,2]
[372903109,1752797446955,-460.0,0.00019452,2]
[372903110,1752797446964,-2226.3,0.00019452,2]
[372903111,1752797446975,-2852.64,0.00019452,2]
[372903112,1752797446985,-460.0,0.00019452,2]
[372903113,1752797446996,-674.51,0.00019452,2]
[372903114,1752797447006,-491.26,0.00019452,2]
[372903115,1752797447015,-460.0,0.00019452,2]
[372903116,1752797447025,-599.29,0.00019452,2]
[372903117,1752797447034,-562.19,0.00019452,2]
[372903118,1752797447043,-2898.84,0.00019452,2]
[372903119,1752797447054,-460.0,0.00019452,2]
[372903120,1752797447064,-460.0,0.00019452,2]
[372903121,1752797447073,-196.2332407,0.00019452,2]
[372903122,1752797447083,-460.0,0.00019452,2]
[372903123,1752797447093,-1471.2,0.00019452,2]
[372903124,1752797447104,-722.45,0.00019452,2]
[372903125,1752797447114,-1853.03,0.00019452,2]
[372903126,1752797447124,-460.0,0.00019452,2]
[372903127,1752797447134,-460.0,0.00019452,2]
[372903128,1752797447144,-1164.09,0.00019452,2]
[372903129,1752797447154,-1096.65,0.00019452,2]
[372903130,1752797447163,-460.0,0.00019452,2]
[372903131,1752797447172,-460.0,0.00019452,2]
[372903132,1752797447182,-4786.0,0.00019452,2]
[372903133,1752797447191,-460.0,0.00019452,2]
[372903134,1752797447201,-639.4,0.00019452,2]
[372903135,1752797447211,-460.0,0.00019452,2]
[372903136,1752797447220,-1414.12,0.00019452,2]
[372903137,1752797447230,-460.0,0.00019452,2]
[372903138,1752797447239,-460.0,0.00019452,2]
[372903139,1752797447249,-284.3208167,0.00019456,2]
[372903140,1752797447258,-302.90913937,0.00019467,2]
[372903141,1752797447267,-2500.0,0.00019481,2]
[372903142,1752797447277,-500.0,0.00019483,2]
[372903143,1752797447286,-1384.25,0.00019486,2]
[372903144,1752797447296,-1015.4,0.00019486,2]
[372903145,1752797447308,-655.0,0.00019513,2]
[372903146,1752797447317,-500.0,0.0001958,2]
[372903147,1752797447327,-500.0,0.0001958,2]
[372903148,1752797447336,-500.0,0.0001958,2]
[372903149,1752797447346,-587.0,0.0001963,2]
[372903150,1752797447355,-302.90913937,0.00019656,2]
[372903151,1752797447365,-573.51,0.00019726,2]
[372903152,1752797447374,-441.27602412,0.00019726,2]
[372903153,1752797447384,-460.0,0.00019726,2]
[372903154,1752797447394,-460.0,0.00019726,2]
[372903155,1752797447403,-2003.11,0.00019726,2]
[372903156,1752797447412,-460.0,0.00019726,2]
[372903157,1752797447422,-460.0,0.00019726,2]
[372903158,1752797447432,-1450.65,0.00019726,2]
[372903159,1752797447442,-460.0,0.00019726,2]
[372903160,1752797447451,-1498.98,0.00019726,2]
[372903161,1752797447461,-460.0,0.00019726,2]
[372903162,1752797447471,-2226.3,0.00019726,2]
[372903163,1752797447481,-2852.64,0.00019726,2]
[372903164,1752797447490,-460.0,0.00019726,2]
[372903165,1752797447499,-674.51,0.00019726,2]
[372903166,1752797447509,-491.26,0.00019726,2]
[372903167,1752797447518,-460.0,0.00019726,2]
[372903168,1752797447528,-599.29,0.00019726,2]
[372903169,1752797447537,-562.19,0.00019726,2]
[372903170,1752797447548,-2898.84,0.00019726,2]
[372903171,1752797447560,-460.0,0.00019726,2]
[372903172,1752797447570,-460.0,0.00019726,2]
[372903173,1752797447589,-460.0,0.00019726,2]
[372903174,1752797447600,-1471.2,0.00019726,2]
[372903175,1752797447610,-722.45,0.00019726,2]
[372903176,1752797447620,-1853.03,0.00019726,2]
[372903177,1752797447630,-460.0,0.00019726,2]
[372903178,1752797447640,-460.0,0.00019726,2]
[372903179,1752797447650,-1164.09,0.00019726,2]
[372903180,1752797447660,-1096.65,0.00019726,2]
[372903181,1752797447670,-460.0,0.00019726,2]
[372903182,1752797447679,-460.0,0.00019726,2]
[372903183,1752797447689,-4786.0,0.00019726,2]
[372903184,1752797447699,-460.0,0.00019726,2]
[372903185,1752797447710,-639.4,0.00019726,2]
[372903186,1752797447720,-460.0,0.00019726,2]
[372903187,1752797447730,-1414.12,0.00019726,2]
[372903188,1752797447740,-460.0,0.00019726,2]
[372903189,1752797447750,-460.0,0.00019726,2]
[372903190,1752797447761,-500.0,0.00019757,2]
[372903191,1752797447771,-1384.25,0.00019759,2]
[372903192,1752797447781,-1015.4,0.00019759,2]
[372903193,1752797447791,-1013.77882747,0.00019763,2]
[372903194,1752797447801,-434.76856574,0.00019771,2]
[372903195,1752797447815,-655.0,0.00019787,2]
[372903196,1752797447825,-454.36370906,0.00019845,4]
[372903197,1752797447835,-1000.0,0.00019921,2]
[372903198,1752797447845,-573.51,0.0002,2]
[372903199,1752797447855,-460.0,0.0002,2]
[372903200,1752797447865,-227.50830199,0.0002,2]
[372903201,1752797447875,-2003.11,0.0002,2]
[372903202,1752797447886,-460.0,0.0002,2]
[372903203,1752797447895,-216.49,0.0002,2]
[372903204,1752797447905,-1450.65,0.0002,2]
[372903205,1752797447914,-465.1845957,0.0002,2]
[372903206,1752797447923,-5929.06254145,0.0002,2]
[372903207,1752797447933,-1498.98,0.0002,2]
[372903208,1752797447943,-460.0,0.0002,2]
[372903209,1752797447953,-2226.3,0.0002,2]
[372903210,1752797447962,-2852.64,0.0002,2]
[372903211,1752797447972,-460.0,0.0002,2]
[372903212,1752797447983,-674.51,0.0002,2]
[372903213,1752797447992,-491.26,0.0002,2]
[372903214,1752797448001,-460.0,0.0002,2]
[372903215,1752797448012,-599.29,0.0002,2]
[372903216,1752797448022,-562.19,0.0002,2]
[372903217,1752797448031,-2898.84,0.0002,2]
[372903218,1752797448041,-460.0,0.0002,2]
[372903219,1752797448051,-460.0,0.0002,2]
[372903220,1752797448064,-460.0,0.0002,2]
[372903221,1752797448074,-1471.2,0.0002,2]
[372903222,1752797448083,-722.45,0.0002,2]
[372903223,1752797448093,-1853.03,0.0002,2]
[372903224,1752797448103,-460.0,0.0002,2]
[372903225,1752797448113,-460.0,0.0002,2]
[372903226,1752797448122,-1164.09,0.0002,2]
[372903227,1752797448132,-1096.65,0.0002,2]
[372903228,1752797448142,-460.0,0.0002,2]
[372903229,1752797448152,-460.0,0.0002,2]
[372903230,1752797448162,-4786.0,0.0002,2]
[372903231,1752797448171,-472.07011707,0.0002,2]
[372903232,1752797448181,-639.4,0.0002,2]
[372903233,1752797448191,-460.0,0.0002,2]
[372903234,1752797448201,-1414.12,0.0002,2]
[372903235,1752797448212,-460.0,0.0002,2]
[372903236,1752797448222,-460.0,0.0002,2]
[372903237,1752797448232,-500.0,0.00020031,2]
[372903238,1752797448243,-1384.25,0.00020033,2]
[372903239,1752797448254,-1015.4,0.00020033,2]
[372903240,1752797448263,-454.36370906,0.00020034,4]
[372903241,1752797448273,-655.0,0.00020061,2]
[372903242,1752797448283,-500.0,0.00020128,2]
[372903243,1752797448293,-500.0,0.00020128,2]
[372903244,1752797448303,-500.0,0.00020128,2]
[372903245,1752797448314,-160.0,0.00020173,3]
[372903246,1752797448323,-12607.95677342,0.00020173,3]
[372903247,1752797448333,-214.44804168,0.00020173,3]
[372903248,1752797448343,-347.38555,0.00020187,2]
[372903249,1752797448353,-454.36370906,0.00020223,4]
[372903250,1752797448363,-573.51,0.00020273,2]
[372903251,1752797448372,-460.0,0.00020273,2]
[372903252,1752797448382,-427.4368279,0.00020273,2]
[372903253,1752797448392,-2003.11,0.00020273,2]
[372903254,1752797448402,-1450.65,0.00020273,2]
[372903255,1752797448412,-1498.98,0.00020273,2]
[372903256,1752797448422,-460.0,0.00020273,2]
[372903257,1752797448431,-2226.3,0.00020273,2]
[372903258,1752797448441,-2852.64,0.00020273,2]
[372903259,1752797448450,-460.0,0.00020273,2]
[372903260,1752797448460,-674.51,0.00020273,2]
[372903261,1752797448470,-491.26,0.00020273,2]
[372903262,1752797448479,-460.0,0.00020273,2]
[372903263,1752797448490,-599.29,0.00020273,2]
[372903264,1752797448500,-562.19,0.00020273,2]
[372903265,1752797448510,-2898.84,0.00020273,2]
[372903266,1752797448520,-460.0,0.00020273,2]
[372903267,1752797448530,-590.30261268,0.00020273,2]
[372903268,1752797448540,-236.5,0.00020273,2]
[372903269,1752797448550,-1471.2,0.00020273,2]
[372903270,1752797448562,-722.45,0.00020273,2]
[372903271,1752797448572,-1853.03,0.00020273,2]
[372903272,1752797448581,-394.3229823,0.00020273,2]
[372903273,1752797448591,-460.0,0.00020273,2]
[372903274,1752797448601,-1164.09,0.00020273,2]
[372903275,1752797448611,-1096.65,0.00020273,2]
[372903276,1752797448620,-150.05933202,0.00020273,2]
[372903277,1752797448630,-460.0,0.00020273,2]
[372903278,1752797448640,-4786.0,0.00020273,2]
[372903279,1752797448649,-639.4,0.00020273,2]
[372903280,1752797448659,-296.1077502,0.00020273,2]
[372903281,1752797448672,-1414.12,0.00020273,2]
[372903282,1752797448682,-460.0,0.00020273,2]
[372903283,1752797448692,-597.08,0.00020273,2]
[372903284,1752797448701,-500.0,0.00020305,2]
[372903285,1752797448849,-1384.25,0.00020307,2]
[372903286,1752797448859,-1015.4,0.00020307,2]